fUST/lending_fUST_20250817
["ID","MTS","AMOUNT","RATE_DAILY","PERIOD"]
[379709590,1755378653728,-151.0,0.00020981,2]
[379709592,1755378653738,-2003.287501,0.00020981,2]
[379709594,1755378653747,-2003.287501,0.00020981,2]
[379709596,1755378653756,-2003.287501,0.00020981,2]
[379709598,1755378653766,-2003.287501,0.00020981,2]
[379709600,1755378653776,-151.0,0.00020981,2]
[379709602,1755378653787,-151.0,0.00020981,2]
[379709604,1755378653796,-164.769487,0.00020981,2]
[379709606,1755378653805,-164.769487,0.00020981,2]
[379709608,1755378653814,-151.0,0.00020981,2]
[379709610,1755378653823,-151.0,0.00020981,2]
[379709612,1755378653832,-151.0,0.00020981,2]
[379709614,1755378653841,-151.0,0.00020981,2]
[379709616,1755378653850,-230.823455,0.00020981,2]
[379709618,1755378653860,-230.331741,0.00020981,2]
[379709620,1755378653870,-230.823455,0.00020981,2]
[379709622,1755378653879,-151.0,0.00020981,2]
[379709624,1755378653890,-151.0,0.00020981,2]
[379709626,1755378653899,-151.0,0.00020981,2]
[379709628,1755378653909,-172.224859,0.00020981,2]
[379709630,1755378653918,-172.224859,0.00020981,2]
[379709632,1755378653927,-151.0,0.00020982,2]
[379709634,1755378653937,-151.0,0.00020982,2]
[379709636,1755378653947,-193.754519,0.00020982,2]
[379709638,1755378653956,-193.754519,0.00020982,2]
[379709640,1755378653966,-151.0,0.00020982,2]
[379709642,1755378653975,-607.932549,0.00020982,2]
[379709644,1755378653984,-607.932549,0.00020982,2]
[379709646,1755378653993,-151.0,0.00020982,2]
[379709648,1755378654002,-151.0,0.00020983,2]
[379709650,1755378654011,-151.0,0.00020983,2]
[379709652,1755378654021,-151.0,0.00020983,2]
[379709654,1755378654030,-166.052772,0.00020983,2]
[379709656,1755378654040,-151.0,0.00020983,2]
[379709657,1755378654049,-725.135236,0.00020983,2]
[379709659,1755378654058,-725.135236,0.00020983,2]
[379709661,1755378654067,-152.920102,0.00020983,2]
[379709663,1755378654076,-152.920102,0.00020983,2]
[379709665,1755378654086,-226.140573,0.00020983,2]
[379709667,1755378654095,-226.140573,0.00020983,2]
[379709669,1755378654104,-151.0,0.00020983,2]
[379709671,1755378654114,-2003.287501,0.00020983,2]
[379709673,1755378654123,-2003.287495,0.00020983,2]
[379709675,1755378654133,-391.222683,0.00020983,2]
[379709677,1755378654142,-391.222683,0.00020983,2]
[379709679,1755378654151,-62853.31616094,0.00020983,2]
[379709681,1755378654160,-418.941,0.00020989,2]
[379709683,1755378654169,-400.82151402,0.00021,2]
[379709685,1755378654179,-3000.0,0.00021,2]
[379709687,1755378654188,-151.0,0.00021,3]
[379709689,1755378654197,-151.0,0.00021,2]
[379709691,1755378654206,-151.0,0.00021,2]
[379709693,1755378654215,-151.0,0.00021,2]
[379709695,1755378654224,-3000.0,0.0002101,2]
[379709697,1755378654233,-151.0,0.0002101,2]
[379709699,1755378654242,-3000.0,0.0002102,2]
[379709701,1755378654251,-500.0,0.00021021,2]
[379709703,1755378654260,-1000.0,0.00021021,2]
[379709705,1755378654269,-1000.0,0.00021021,2]
[379709707,1755378654278,-4477.319031,0.0002103,2]
[379709709,1755378654287,-151.0,0.0002103,2]
[379709710,1755378654296,-248.180497,0.0002103,2]
[379709712,1755378654306,-248.180497,0.0002103,2]
[379709714,1755378654315,-206.0,0.0002104,2]
[379709716,1755378654324,-870.0,0.00021054,3]
[379709718,1755378654333,-332.0,0.00021054,2]
[379709720,1755378654343,-168.0,0.00021061,2]
[379709722,1755378654352,-151.0,0.00021084,2]
[379709724,1755378654364,-151.0,0.00021085,2]
[379709726,1755378654373,-164.769487,0.00021085,2]
[379709728,1755378654382,-164.769487,0.00021085,2]
[379709730,1755378654391,-539.08915536,0.0002109,2]
[379709732,1755378654401,-151.0,0.000211,3]
[379709734,1755378654410,-160.7608968,0.00021111,2]
[379709736,1755378654420,-160.7608968,0.00021111,2]
[379709738,1755378654429,-160.7608968,0.00021111,2]
[379709740,1755378654439,-160.7608968,0.00021111,2]
[379709742,1755378654448,-160.7608968,0.00021111,2]
[379709744,1755378654457,-160.7608968,0.00021111,2]
[379709746,1755378654466,-160.7608968,0.00021111,2]
[379709748,1755378654475,-160.7608968,0.00021111,2]
[379709750,1755378654484,-160.7608968,0.00021111,2]
[379709752,1755378654494,-160.7608968,0.00021111,2]
[379709754,1755378654503,-160.7608968,0.00021111,2]
[379709756,1755378654515,-160.7608968,0.00021111,2]
[379709758,1755378654527,-4461.57346654,0.00021129,2]
[379709760,1755378654536,-524.98,0.00021152,2]
[379709762,1755378654545,-219.040316,0.00021161,2]
[379709764,1755378654554,-500.0,0.0002117,2]
[379709766,1755378654563,-172.48783191,0.00021178,2]
[379709768,1755378654574,-500.0,0.00021184,2]
[379709770,1755378654584,-229.579,0.00021202,2]
[379709772,1755378654593,-250.0,0.00021202,2]
[379709774,1755378654602,-150.028,0.00021202,2]
[379709776,1755378654611,-150.101,0.00021202,2]
[379709778,1755378654620,-150.0,0.00021202,2]
[379709779,1755378654629,-219.175,0.00021202,2]
[379709781,1755378654638,-973.961,0.00021202,2]
[379709783,1755378654647,-769.296,0.00021202,2]
[379709785,1755378654656,-2152.0,0.00021202,2]
[379709787,1755378654665,-828.33,0.00021251,2]
[379709789,1755378654676,-735.69,0.00021251,2]
[379709792,1755378654685,-759.42,0.00021251,2]
[379709793,1755378654694,-480.0,0.00021251,2]
[379709795,1755378654703,-2163.86,0.00021251,2]
[379709797,1755378654713,-3039.7,0.00021251,2]
[379709799,1755378654722,-480.0,0.00021251,2]
[379709801,1755378654731,-325.31266022,0.00021251,2]
[379709803,1755378654740,-2143.46,0.00021251,2]
[379709805,1755378654750,-714.21,0.00021251,2]
[379709807,1755378654759,-734.99,0.00021251,2]
[379709809,1755378654768,-1028.98,0.00021251,2]
[379709811,1755378654777,-2948.88,0.00021251,2]
[379709812,1755378654786,-567.77,0.00021251,2]
[379709815,1755378654796,-51.82206347,0.00021251,2]
[379709836,1755378654994,-428.17793653,0.00021251,2]
[379709839,1755378655005,-1034.63,0.00021251,2]
[379709840,1755378655014,-114.5311578,0.00021252,2]
[379709870,1755378655435,-458.45965161,0.00020155,2]
[379709937,1755378712168,799.23726713,0.000189,2]
[379709938,1755378722042,189.389005,0.00019863,2]
[379709939,1755378730601,500.0,0.00019725,2]
[379709940,1755378739865,1125.5601608,0.00020058,2]
[379709941,1755378775649,60291.04012793,0.00020056,2]
[379709942,1755378775678,309708.95987207,0.00020056,2]
[379709943,1755378881454,179.83814567,0.00018119,2]
[379709944,1755378930120,1185.4856883,0.00020055,2]
[379709945,1755378930919,666.0,0.00019178,2]
[379709946,1755378948996,386.895773,0.00013699,2]
[379709947,1755378950497,241.4971125,0.00019902,2]
[379709948,1755379008387,168.0,0.00019653,2]
[379709949,1755379012583,168.0,0.00019639,2]
[379709950,1755379013901,532.82484475,0.000189,2]
[379709951,1755379074050,2081.19835332,0.00020087,2]
[379709952,1755379115410,1037.29997721,0.00020054,2]
[379709956,1755379221744,822.0,0.00019676,2]
[379709958,1755379225952,822.0,0.00019544,2]
[379709960,1755379253007,231.0123172,0.00019302,2]
[379709961,1755379281435,2032.76676195,0.00020056,2]
[379709962,1755379306784,907.63748005,0.00020048,2]
[379709963,1755379315203,355.21656317,0.000189,2]
[379709964,1755379329260,1387.46556888,0.00020087,2]
[379709981,1755379497159,794.18279507,0.00020048,2]
[379709992,1755379588880,924.97704592,0.00020087,2]
[379709995,1755379616566,236.81104211,0.000189,2]
[379709996,1755379621754,1626.21340956,0.00020056,2]
[379709997,1755379625090,168.0,0.00019788,2]
[379710000,1755379666758,24044.77690461,0.0002006,3]
[379710003,1755379688625,694.90994566,0.00020048,2]
[379710091,1755379831782,-4999.999999,0.0002014,2]
[379710093,1755379831791,-631.23138002,0.00020143,2]
[379710095,1755379831803,-568.76861998,0.00020143,2]
[379710097,1755379831812,-448.4766397,0.00020143,2]
[379710098,1755379831824,-62.5233603,0.00020143,2]
[379710099,1755379831833,-300.0,0.00020144,2]
[379710101,1755379831842,-300.0,0.00020144,2]
[379710103,1755379831852,-300.0,0.00020144,2]
[379710104,1755379831861,-238.0,0.00020144,2]
[379710105,1755379831870,-443.2,0.00020145,3]
[379710106,1755379831878,-349.21,0.00020145,3]
[379710107,1755379831887,-174.6,0.00020145,3]
[379710108,1755379831897,-523.84,0.00020145,3]
[379710109,1755379831906,-1045.0,0.00020146,2]
[379710110,1755379831915,-500.0,0.00020146,2]
[379710112,1755379831924,-500.0,0.00020146,2]
[379710114,1755379831933,-480.0,0.00020146,2]
[379710116,1755379831942,-480.0,0.00020146,2]
[379710118,1755379831951,-480.0,0.00020146,2]
[379710120,1755379831960,-501.54034839,0.00020146,2]
[379710122,1755379831969,-480.0,0.00020146,2]
[379710124,1755379831978,-6646.74521581,0.00020147,2]
[379710125,1755379831987,-582.42,0.00020147,2]
[379710126,1755379831996,-601.21,0.00020147,2]
[379710127,1755379832008,-480.0,0.00020147,2]
[379710128,1755379832017,-480.0,0.00020147,2]
[379710129,1755379832026,-480.0,0.00020147,2]
[379710130,1755379832197,-1864.63,0.00020147,2]
[379710131,1755379832221,-2625.15,0.00020147,2]
[379710132,1755379832230,-480.0,0.00020147,2]
[379710133,1755379832239,-480.0,0.00020147,2]
[379710134,1755379832247,-1442.84,0.00020147,2]
[379710135,1755379832256,-642.18,0.00020147,2]
[379710136,1755379832265,-621.54,0.00020147,2]
[379710137,1755379832274,-480.0,0.00020147,2]
[379710138,1755379832284,-814.61,0.00020147,2]
[379710139,1755379832294,-480.0,0.00020147,2]
[379710140,1755379832303,-2528.79,0.00020147,2]
[379710141,1755379832312,-894.0,0.00020147,2]
[379710142,1755379832321,-480.0,0.00020147,2]
[379710143,1755379832330,-177.7301253,0.00020147,2]
[379710144,1755379832342,-960.4098747,0.00020147,2]
[379710145,1755379832352,-480.0,0.00020147,2]
[379710146,1755379832361,-480.0,0.00020147,2]
[379710147,1755379832373,-363.10561755,0.00020147,2]
[379710148,1755379832395,-116.89438245,0.00020147,2]
[379710149,1755379832416,-835.63,0.00020147,2]
[379710150,1755379832437,-151.0,0.00020148,2]
[379710151,1755379832452,-151.0,0.00020148,2]
[379710152,1755379832461,-151.0,0.00020148,2]
[379710153,1755379832471,-151.28597799,0.00020148,2]
[379710154,1755379832480,-300.0,0.00020148,2]
[379710155,1755379832489,-151.0,0.00020148,2]
[379710156,1755379832498,-300.0,0.00020148,2]
[379710157,1755379832508,-151.0,0.00020148,2]
[379710158,1755379832517,-291.18963956,0.00020148,2]
[379710159,1755379832529,-8.81036044,0.00020148,2]
[379710160,1755379832538,-151.0,0.00020148,2]
[379710161,1755379832548,-151.0,0.00020148,2]
[379710162,1755379832557,-300.0,0.00020148,2]
[379710163,1755379832566,-151.0,0.00020148,2]
[379710164,1755379832576,-151.0,0.00020148,2]
[379710165,1755379832585,-300.0,0.00020148,2]
[379710166,1755379832595,-151.0,0.00020148,2]
[379710167,1755379832604,-151.0,0.00020148,2]
[379710168,1755379832614,-300.0,0.00020148,2]
[379710169,1755379832623,-151.0,0.00020148,2]
[379710170,1755379832632,-151.0,0.00020148,2]
[379710171,1755379832642,-151.0,0.00020148,2]
[379710172,1755379832651,-151.0,0.00020148,2]
[379710173,1755379832660,-151.0,0.00020148,2]
[379710174,1755379832669,-151.0,0.00020148,2]
[379710175,1755379832678,-290.92949727,0.00020148,2]
[379710176,1755379832687,-151.0,0.00020148,2]
[379710177,1755379832697,-151.0,0.00020148,2]
[379710178,1755379832706,-151.0,0.00020148,2]
[379710179,1755379832715,-151.0,0.00020148,2]
[379710180,1755379832724,-5309.88285428,0.00020148,2]
[379710183,1755379837708,-483.07,0.00020146,2]
[379710184,1755379837717,-480.0,0.00020146,2]
[379710185,1755379837727,-480.0,0.00020147,2]
[379710186,1755379837736,-867.6,0.00020147,2]
[379710187,1755379837746,-12532.63959372,0.00020148,2]
[379710188,1755379837754,-151.0,0.00020148,2]
[379710189,1755379837763,-151.0,0.00020148,2]
[379710190,1755379837773,-151.0,0.00020148,2]
[379710191,1755379837781,-151.0,0.00020148,2]
[379710192,1755379837790,-151.0,0.00020148,2]
[379710193,1755379837800,-151.0,0.00020148,2]
[379710194,1755379837809,-151.0,0.00020148,2]
[379710196,1755379837818,-151.0,0.00020148,2]
[379710198,1755379837827,-151.0,0.00020148,2]
[379710200,1755379837836,-151.0,0.00020148,2]
[379710202,1755379837845,-151.0,0.00020148,2]
[379710204,1755379837854,-151.0,0.00020148,2]
[379710206,1755379837863,-151.0,0.00020148,2]
[379710208,1755379837872,-151.0,0.00020148,2]
[379710210,1755379837882,-151.0,0.00020148,2]
[379710212,1755379837891,-151.0,0.00020148,2]
[379710214,1755379837901,-229.54265378,0.00020148,2]
[379710216,1755379837910,-253.65650648,0.00020152,2]
[379710217,1755379837919,-480.0,0.00020153,2]
[379710219,1755379837928,-480.0,0.00020153,2]
[379710221,1755379837937,-507.9,0.00020153,2]
[379710224,1755379837947,-480.0,0.00020153,2]
[379710226,1755379837956,-480.0,0.00020153,2]
[379710228,1755379837965,-480.0,0.00020153,2]
[379710230,1755379837975,-1036.7,0.00020153,2]
[379710232,1755379837984,-1754.21,0.00020153,2]
[379710233,1755379837993,-480.0,0.00020153,2]
[379710235,1755379838003,-921.7,0.00020153,2]
[379710237,1755379838014,-480.0,0.00020153,2]
[379710240,1755379838023,-480.0,0.00020153,2]
[379710241,1755379838035,-155.79837104,0.00020153,2]
[379710243,1755379838045,-441.03811493,0.00020153,2]
[379710245,1755379838055,-480.0,0.00020153,2]
[379710247,1755379838064,-480.0,0.00020153,2]
[379710249,1755379838075,-4718.81,0.00020153,2]
[379710251,1755379838084,-480.0,0.00020153,2]
[379710253,1755379838093,-460.0,0.00020153,2]
[379710255,1755379838103,-604.72,0.00020153,2]
[379710257,1755379838112,-589.6,0.00020153,2]
[379710259,1755379838121,-480.0,0.00020153,2]
[379710261,1755379838130,-480.0,0.00020153,2]
[379710263,1755379838139,-480.0,0.00020153,2]
[379710265,1755379838149,-617.33,0.00020153,2]
[379710267,1755379838158,-420.5647736,0.00020153,2]
[379710269,1755379838167,-751.46,0.00020153,2]
[379710271,1755379838176,-461.54439111,0.00020153,2]
[379710273,1755379838186,-480.0,0.00020153,2]
[379710276,1755379838195,-3479.47,0.00020153,2]
[379710278,1755379838204,-711.42,0.00020153,2]
[379710280,1755379838213,-480.0,0.00020153,2]
[379710281,1755379838223,-565.96,0.00020153,2]
[379710283,1755379838232,-480.0,0.00020153,2]
[379710285,1755379838241,-909.28,0.00020153,2]
[379710287,1755379838250,-480.0,0.00020153,2]
[379710289,1755379838259,-480.0,0.00020153,2]
[379710291,1755379838269,-480.0,0.00020153,2]
[379710293,1755379838278,-440.0,0.00020153,2]
[379710296,1755379838288,-480.0,0.00020153,2]
[379710298,1755379838297,-480.0,0.00020153,2]
[379710300,1755379838306,-480.0,0.00020153,2]
[379710302,1755379838316,-976.48,0.00020153,2]
[379710304,1755379838326,-480.0,0.00020153,2]
[379710306,1755379838335,-678.67,0.00020153,2]
[379710308,1755379838345,-480.0,0.00020153,2]
[379710310,1755379838355,-480.0,0.00020153,2]
[379710312,1755379838364,-480.0,0.00020153,2]
[379710314,1755379838373,-480.0,0.00020153,2]
[379710316,1755379838382,-677.55,0.00020153,2]
[379710318,1755379838391,-480.0,0.00020153,2]
[379710320,1755379838401,-480.0,0.00020153,2]
[379710322,1755379838411,-480.0,0.00020153,2]
[379710324,1755379838420,-480.0,0.00020153,2]
[379710326,1755379838429,-480.0,0.00020153,2]
[379710328,1755379838439,-480.0,0.00020153,2]
[379710330,1755379838450,-505.58,0.00020153,2]
[379710332,1755379838459,-480.0,0.00020153,2]
[379710334,1755379838468,-480.0,0.00020153,2]
[379710336,1755379838477,-745.81,0.00020153,2]
[379710338,1755379838487,-480.0,0.00020153,2]
[379710340,1755379838496,-480.0,0.00020153,2]
[379710342,1755379838505,-480.0,0.00020153,2]
[379710344,1755379838515,-480.0,0.00020153,2]
[379710346,1755379838524,-935.54,0.00020153,2]
[379710348,1755379838534,-480.0,0.00020153,2]
[379710350,1755379838543,-690.41,0.00020153,2]
[379710352,1755379838552,-480.0,0.00020153,2]
[379710354,1755379838562,-480.0,0.00020153,2]
[379710356,1755379838571,-480.0,0.00020153,2]
[379710358,1755379838581,-989.41,0.00020153,2]
[379710360,1755379838591,-897.65,0.00020153,2]
[379710361,1755379838600,-480.0,0.00020153,2]
[379710363,1755379838609,-480.0,0.00020154,2]
[379710365,1755379838618,-506.7498933,0.00020154,2]
[379710368,1755379838627,-480.0,0.00020154,2]
[379710370,1755379838637,-480.0,0.00020154,2]
[379710372,1755379838647,-444.74189389,0.00020154,2]
[379710374,1755379838656,-480.0,0.00020154,2]
[379710376,1755379838665,-480.0,0.00020154,2]
[379710378,1755379838674,-480.0,0.00020154,2]
[379710379,1755379838684,-480.0,0.00020154,2]
[379710381,1755379838694,-480.0,0.00020154,2]
[379710383,1755379838705,-480.0,0.00020154,2]
[379710385,1755379838715,-480.0,0.00020154,2]
[379710387,1755379838724,-480.0,0.00020154,2]
[379710390,1755379838733,-480.0,0.00020154,2]
[379710392,1755379838742,-480.0,0.00020154,2]
[379710394,1755379838753,-480.0,0.00020154,2]
[379710395,1755379838762,-480.0,0.00020154,2]
[379710398,1755379838771,-480.0,0.00020154,2]
[379710399,1755379838780,-480.0,0.00020154,2]
[379710401,1755379838789,-480.0,0.00020154,2]
[379710403,1755379838798,-480.0,0.00020154,2]
[379710405,1755379838807,-480.0,0.00020154,2]
[379710407,1755379838816,-480.0,0.00020154,2]
[379710409,1755379838825,-480.0,0.00020154,2]
[379710411,1755379838834,-480.0,0.00020154,2]
[379710413,1755379838844,-480.0,0.00020154,2]
[379710415,1755379838853,-406.91306817,0.00020154,2]
[379710417,1755379838862,-480.0,0.00020154,2]
[379710419,1755379838871,-480.0,0.00020154,2]
[379710421,1755379838880,-480.0,0.00020154,2]
[379710423,1755379838889,-480.0,0.00020154,2]
[379710425,1755379838899,-420.0,0.00020154,2]
[379710427,1755379838908,-507.27,0.00020154,2]
[379710429,1755379838917,-480.0,0.00020154,2]
[379710431,1755379838926,-440.0,0.00020154,2]
[379710433,1755379838935,-480.0,0.00020154,2]
[379710435,1755379838944,-480.0,0.00020154,2]
[379710437,1755379838954,-480.0,0.00020154,2]
[379710439,1755379838963,-3144.92,0.00020154,2]
[379710441,1755379838973,-480.0,0.00020154,2]
[379710458,1755379838982,-480.0,0.00020154,2]
[379710461,1755379839148,-480.0,0.00020154,2]
[379710463,1755379839157,-480.0,0.00020154,2]
[379710465,1755379839167,-480.0,0.00020154,2]
[379710467,1755379839176,-480.0,0.00020154,2]
[379710469,1755379839185,-480.0,0.00020154,2]
[379710470,1755379839195,-480.0,0.00020154,2]
[379710472,1755379839204,-480.0,0.00020154,2]
[379710474,1755379839213,-480.0,0.00020154,2]
[379710476,1755379839223,-677.51,0.00020154,2]
[379710478,1755379839232,-480.0,0.00020154,2]
[379710480,1755379839241,-927.7,0.00020154,2]
[379710482,1755379839251,-480.0,0.00020154,2]
[379710484,1755379839263,-480.0,0.00020154,2]
[379710486,1755379839275,-480.0,0.00020154,2]
[379710489,1755379839284,-480.0,0.00020154,2]
[379710492,1755379839294,-465.18418043,0.00020154,2]
[379710495,1755379839303,-636.63,0.00020154,2]
[379710497,1755379839313,-524.55,0.00020154,2]
[379710499,1755379839322,-1008.29,0.00020154,2]
[379710501,1755379839331,-560.73,0.00020154,2]
[379710504,1755379839342,-480.0,0.00020154,2]
[379710506,1755379839351,-480.0,0.00020154,2]
[379710508,1755379839360,-762.99,0.00020154,2]
[379710510,1755379839370,-480.0,0.00020154,2]
[379710512,1755379839379,-480.0,0.00020154,2]
[379710514,1755379839388,-480.0,0.00020154,2]
[379710516,1755379839398,-9465.91,0.00020154,2]
[379710518,1755379839407,-367.36921939,0.00020154,2]
[379710520,1755379839416,-480.0,0.00020154,2]
[379710522,1755379839426,-1079.52,0.00020154,2]
[379710524,1755379839435,-480.0,0.00020154,2]
[379710525,1755379839444,-480.0,0.00020154,2]
[379710526,1755379839453,-480.0,0.00020154,2]
[379710527,1755379839463,-480.0,0.00020154,2]
[379710528,1755379839472,-480.0,0.00020154,2]
[379710529,1755379839481,-480.0,0.00020154,2]
[379710530,1755379839490,-1898.78,0.00020154,2]
[379710531,1755379839499,-303.63590484,0.00020154,2]
[379710532,1755379839508,-480.0,0.00020154,2]
[379710533,1755379839518,-480.0,0.00020154,2]
[379710534,1755379839527,-421.12831416,0.00020154,2]
[379710535,1755379839537,-480.0,0.00020154,2]
[379710536,1755379839546,-480.0,0.00020154,2]
[379710537,1755379839554,-572.29,0.00020154,2]
[379710538,1755379839563,-673.64,0.00020154,2]
[379710539,1755379839572,-480.0,0.00020155,2]
[379710540,1755379839581,-548.42,0.00020155,2]
[379710541,1755379839590,-1246.79,0.00020155,2]
[379710542,1755379839599,-480.0,0.00020155,2]
[379710543,1755379839608,-480.0,0.00020155,2]
[379710544,1755379839618,-480.0,0.00020155,2]
[379710545,1755379839627,-488.53,0.00020155,2]
[379710546,1755379839637,-1328.44,0.00020155,2]
[379710547,1755379839646,-480.0,0.00020155,2]
[379710548,1755379839655,-491.16,0.00020155,2]
[379710549,1755379839664,-480.0,0.00020155,2]
[379710550,1755379839673,-480.0,0.00020155,2]
[379710551,1755379839682,-480.0,0.00020155,2]
[379710552,1755379839691,-480.0,0.00020155,2]
[379710553,1755379839700,-480.0,0.00020155,2]
[379710554,1755379839709,-634.46,0.00020155,2]
[379710555,1755379839718,-869.14,0.00020155,2]
[379710556,1755379839727,-480.0,0.00020155,2]
[379710557,1755379839736,-599.36,0.00020155,2]
[379710558,1755379839744,-480.0,0.00020155,2]
[379710559,1755379839753,-480.0,0.00020155,2]
[379710560,1755379839762,-1410.74,0.00020155,2]
[379710561,1755379839771,-589.82,0.00020155,2]
[379710562,1755379839780,-480.0,0.00020155,2]
[379710563,1755379839788,-833.04,0.00020155,2]
[379710564,1755379839797,-1025.15,0.00020155,2]
[379710565,1755379839806,-480.0,0.00020155,2]
[379710566,1755379839815,-611.46,0.00020155,2]
[379710567,1755379839823,-480.0,0.00020155,2]
[379710568,1755379839832,-813.54,0.00020155,2]
[379710569,1755379839842,-480.0,0.00020155,2]
[379710571,1755379839851,-480.0,0.00020155,2]
[379710573,1755379839860,-717.35,0.00020155,2]
[379710575,1755379839870,-480.0,0.00020156,2]
[379710577,1755379839879,-480.0,0.00020156,2]
[379710579,1755379839888,-480.0,0.00020156,2]
[379710581,1755379839898,-480.0,0.00020156,2]
[379710583,1755379839908,-480.0,0.00020156,2]
[379710585,1755379839917,-480.0,0.00020156,2]
[379710587,1755379839926,-480.0,0.00020156,2]
[379710588,1755379839935,-531.63,0.00020156,2]
[379710589,1755379839944,-480.0,0.00020156,2]
[379710590,1755379839953,-150.0,0.00020156,2]
[379710591,1755379839962,-480.0,0.00020156,2]
[379710592,1755379839971,-480.0,0.00020156,2]
[379710593,1755379839980,-480.0,0.00020156,2]
[379710594,1755379839989,-765.6,0.00020156,2]
[379710595,1755379839998,-480.0,0.00020156,2]
[379710596,1755379840010,-480.0,0.00020156,2]
[379710597,1755379840019,-480.0,0.00020156,2]
[379710598,1755379840029,-480.0,0.00020156,2]
[379710599,1755379840038,-480.0,0.00020156,2]
[379710600,1755379840047,-480.0,0.00020156,2]
[379710601,1755379840056,-535.98,0.00020156,2]
[379710602,1755379840066,-500.0,0.00020156,2]
[379710603,1755379840075,-480.0,0.00020156,2]
[379710604,1755379840084,-480.0,0.00020156,2]
[379710605,1755379840094,-480.0,0.00020156,2]
[379710606,1755379840103,-480.0,0.00020156,2]
[379710607,1755379840112,-705.19,0.00020156,2]
[379710608,1755379840121,-480.0,0.00020156,2]
[379710609,1755379840130,-504.12974632,0.00020156,2]
[379710610,1755379840140,-480.0,0.00020156,2]
[379710611,1755379840149,-480.0,0.00020156,2]
[379710612,1755379840158,-480.0,0.00020156,2]
[379710613,1755379840168,-480.0,0.00020156,2]
[379710614,1755379840177,-480.0,0.00020156,2]
[379710615,1755379840187,-480.0,0.00020156,2]
[379710616,1755379840196,-480.0,0.00020156,2]
[379710617,1755379840205,-510.8,0.00020156,2]
[379710618,1755379840214,-480.0,0.00020156,2]
[379710619,1755379840223,-480.0,0.00020156,2]
[379710620,1755379840232,-480.0,0.00020156,2]
[379710621,1755379840241,-480.0,0.00020156,2]
[379710622,1755379840250,-480.0,0.00020156,2]
[379710623,1755379840259,-480.0,0.00020156,2]
[379710624,1755379840269,-1407.97,0.00020156,2]
[379710625,1755379840278,-480.0,0.00020156,2]
[379710626,1755379840287,-480.0,0.00020156,2]
[379710627,1755379840296,-549.88,0.00020156,2]
[379710628,1755379840306,-602.64,0.00020156,2]
[379710629,1755379840316,-480.0,0.00020156,2]
[379710630,1755379840325,-480.0,0.00020156,2]
[379710631,1755379840335,-480.0,0.00020156,2]
[379710632,1755379840344,-480.0,0.00020156,2]
[379710633,1755379840353,-480.0,0.00020156,2]
[379710634,1755379840363,-480.0,0.00020156,2]
[379710635,1755379840372,-480.0,0.00020156,2]
[379710636,1755379840382,-480.0,0.00020156,2]
[379710637,1755379840391,-480.0,0.00020156,2]
[379710638,1755379840400,-480.0,0.00020156,2]